[Event "Chinese League Div-A Rapid 2022"]
[Site "Fuling,Chongqing"]
[Date "2022.09.14"]
[Round "7.22"]
[White "Li, Di"]
[Black "Zhang, Pengxiang"]
[Result "1/2-1/2"]
[ECO "A16"]
[WhiteElo "2575"]
[BlackElo "2564"]
[Annotator "TA"]
[PlyCount "172"]
[EventDate "2022.09.07"]
[EventType "team-tourn"]
[EventCountry "CHN"]
[SourceTitle "playchess.com"]
[Source "ChessBase"]
[SourceQuality "1"]
[TimeControl "1500+10"]

{[%evp 35,172,28,24,23,29,19,27,20,12,10,17,2,20,0,0,0,0,0,0,0,0,0,0,0,7,0,0,0,0,0,0,0,0,0,0,0,0,0,0,0,0,0,0,0,0,0,0,0,0,0,0,0,0,0,0,0,0,0,0,0,0,0,0,0,0,0,0,0,0,-8,8,8,8,8,8,8,8,8,8,0,8,8,8,8,10,0,10,10,10,0,10,10,10,10,10,10,8,8,8,0,8,8,10,10,10,10,10,10,10,10,10,8,10,10,10,0,10,0,22,8,20,8,8,0,8,0,17,0,10,10,51,8,8,8,8,8,8,8,8]} 1. Nf3 {[%emt 0:00:02]} Nf6 {[%emt 0:00:09]} 2. c4 {[%emt 0:00:02]} g6 {[%emt 0:00:05]} 3. Nc3 {[%emt 0:00:02]} d5 {[%emt 0:00:03]} 4. cxd5 {[%emt 0:00:03]} Nxd5 {[%emt 0:00:01]} 5. h4 {[%emt 0:00:03]} Bg7 {[%emt 0:00:13]} 6. e4 {[%emt 0:00:04]} Nxc3 {[%emt 0:00:20]} 7. dxc3 {[%emt 0:00:02]} Qxd1+ {[%emt 0:02:15]} 8. Kxd1 {[%emt 0:00:02]} Nd7 {[%emt 0:00:01]} 9. Nd4 {[%emt 0:00:11]} a6 {[%emt 0:01:14]} 10. Be3 {[%emt 0:00:04]} e5 {[%emt 0:01:31]} 11. Nb3 {[%emt 0:00:25]} b6 {[%emt 0:00:02]} 12. f3 {[%emt 0:01:56]} Bb7 {[%emt 0:00:05]} 13. Kc2 {[%emt 0:00:28]} f5 {[%emt 0:02:30]} 14. Nd2 {[%emt 0:01:01]} O-O-O {[%emt 0:02:07]} 15. Bd3 {[%emt 0:00:12]} Rhf8 {[%emt 0:01:01]} 16. h5 {[%emt 0:00:10]} f4 {[%emt 0:00:53]} 17. Bf2 {[%emt 0:00:02]} g5 {[%emt 0:00:02]} 18. h6 {[%emt 0:00:05]} Bf6 {[%emt 0:00:14]} 19. Bc4 {[%emt 0:00:12]} Rde8 {[%emt 0:01:42]} 20. b4 {[%emt 0:00:02]} Bd8 {[%emt 0:00:40]} 21. a4 {[%emt 0:00:19]} Rf6 {[%emt 0:00:53]} 22. Rad1 {[%emt 0:05:32]} Be7 {[%emt 0:02:07]} 23. Nb3 {[%emt 0:01:24]} Rd8 {[%emt 0:00:18]} 24. b5 {[%emt 0:00:21]} axb5 {[%emt 0:00:39]} 25. axb5 {[%emt 0:00:02]} Nf8 {[%emt 0:00:11]} 26. Bd5 {[%emt 0:00:08]} Bxd5 {[%emt 0:01:32]} 27. Rxd5 {[%emt 0:00:53]} Rxd5 {[%emt 0:00:39]} 28. exd5 {[%emt 0:00:01]} Nd7 {[%emt 0:00:10]} 29. Nd2 {[%emt 0:00:27]} Rg6 {[%emt 0:00:24]} 30. Kd3 {[%emt 0:00:55]} Bc5 {[%emt 0:04:01]} 31. Be1 {[%emt 0:00:40]} Bf8 {[%emt 0:00:09]} 32. Ne4 {[%emt 0:00:21]} g4 {[%emt 0:00:28]} 33. c4 {[%emt 0:02:17]} gxf3 {[%emt 0:00:15]} (33... Bd6 {seems wilder.} 34. Rh5 gxf3 35. gxf3 Bf8) 34. gxf3 {[%emt 0:00:01]} Rxh6 {[%emt 0:00:01]} 35. Rxh6 {[%emt 0:00:38]} Bxh6 {[%emt 0:00:01]} 36. Bb4 {[%emt 0:01:56]} Bf8 {[%emt 0:01:31]} 37. Bxf8 {[%emt 0:00:19]} Nxf8 {[%emt 0:00:01]} 38. Nf6 {[%emt 0:00:19]} Nd7 {[%emt 0:02:13]} 39. Nxh7 {[%emt 0:00:28]} Nc5+ {[%emt 0:00:01]} 40. Ke2 {[%emt 0:02:09]} Na4 {[%emt 0:00:21]} 41. Kd3 {[%emt 0:00:13]} Nc5+ {[%emt 0:00:03]} 42. Ke2 {[%emt 0:00:01]} Na4 {[%emt 0:00:31]} 43. Kd3 {[%emt 0:00:01]} Nb2+ {[%emt 0:00:06]} 44. Kc3 {[%emt 0:00:02]} e4 {[%emt 0:00:08]} 45. Ng5 {[%emt 0:00:43]} ({But not} 45. Kxb2 $2 exf3 46. Ng5 f2 $19) 45... Na4+ {[%emt 0:00:18]} (45... e3 $5 {[%cal Rb2c4]} 46. Nh3 (46. Kxb2 $2 e2 $19) 46... Nxc4 47. Nxf4 (47. Kxc4 $2 e2 $19) 47... Nd6 $11) 46. Kc2 {[%emt 0:00:18]} exf3 {[%emt 0:00:22]} 47. Nxf3 {[%emt 0:00:04]} Nc5 {[%emt 0:00:05]} 48. Kc3 {[%emt 0:00:12]} Kd7 {[%emt 0:00:02]} 49. Kd4 {[%emt 0:00:02]} Kd6 {[%emt 0:00:04]} 50. Nd2 {[%emt 0:00:02]} Nd7 {[%emt 0:00:22]} 51. Ne4+ {[%emt 0:00:11]} Ke7 {[%emt 0:00:01]} 52. Ng5 {[%emt 0:00:55]} Kd6 {[%emt 0:00:25]} 53. Nh3 {[%emt 0:00:45]} f3 {[%emt 0:00:04]} 54. Ng5 {[%emt 0:00:04]} Nc5 {[%emt 0:00:18]} 55. Nxf3 {[%emt 0:00:03]} Nb3+ {[%emt 0:00:02]} 56. Kc3 {[%emt 0:00:06]} Nc5 {[%emt 0:00:09]} 57. Ne1 {[%emt 0:00:13]} Ne4+ {[%emt 0:00:09]} 58. Kd4 {[%emt 0:00:06]} Nd2 {[%emt 0:00:02]} 59. Nd3 {[%emt 0:00:11]} Nf3+ {[%emt 0:00:25]} 60. Ke3 {[%emt 0:00:09]} Ng5 {[%emt 0:00:00]} 61. Kf4 $1 {[%emt 0:00:04]} Nf7 {[%emt 0:00:07]} 62. Kf5 {[%emt 0:00:14]} Nd8 {[%emt 0:00:07]} 63. Ke4 {[%emt 0:01:51]} Nf7 {[%emt 0:00:02]} 64. Kd4 {[%emt 0:03:18]} Nh6 {[%emt 0:00:01]} 65. Nf2 {[%emt 0:00:06]} Nf5+ {[%emt 0:00:01]} 66. Ke4 {[%emt 0:00:01]} Ng3+ {[%emt 0:00:38]} 67. Kd4 {[%emt 0:00:19]} Nf5+ {[%emt 0:00:07]} 68. Kd3 {[%emt 0:00:02]} Ne7 {[%emt 0:00:25]} 69. Ne4+ {[%emt 0:00:10]} Ke5 {[%emt 0:00:03]} 70. Ng5 {[%emt 0:00:07]} Kd6 {[%emt 0:00:14]} 71. Nf7+ $1 {[%emt 0:00:05]} Kc5 {[%emt 0:00:06]} 72. Nd8 {[%emt 0:00:23]} Nf5 {[%emt 0:00:16]} 73. Ne6+ {[%emt 0:01:31]} Kd6 {[%emt 0:00:01]} 74. Ke4 {[%emt 0:00:01]} Ng3+ {[%emt 0:00:01]} 75. Kd3 {[%emt 0:00:11]} Nf5 {[%emt 0:00:07]} 76. Ng5 {[%emt 0:00:15]} Nh4 {[%emt 0:00:25]} 77. Ke4 {[%emt 0:00:11]} Ng6 {[%emt 0:00:02]} 78. Kf5 {[%emt 0:00:16]} Ne7+ {[%emt 0:00:02]} 79. Ke4 {[%emt 0:00:20]} Kc5 {[%emt 0:00:01]} 80. Kd3 {[%emt 0:00:07]} Kd6 {[%emt 0:00:02]} 81. Nf7+ {[%emt 0:00:14]} Kc5 {[%emt 0:00:05]} 82. Ne5 {[%emt 0:00:09]} Kd6 {[%emt 0:00:12]} 83. Ng4 {[%emt 0:00:15]} Nxd5 {[%emt 0:00:31]} 84. cxd5 {[%emt 0:00:03]} Kxd5 {[%emt 0:00:01]} 85. Nf6+ {[%emt 0:00:12]} Kc5 {[%emt 0:00:01]} 86. Ne8 {[%emt 0:00:03]} Kxb5 {[%emt 0:00:02]} 1/2-1/2

[Event "Chinese League Div-A Rapid 2022"]
[Site "Fuling,Chongqing"]
[Date "2022.09.14"]
[Round "7.23"]
[White "Xu, Xiangyu"]
[Black "Peng, Xiongjian"]
[Result "1-0"]
[ECO "E01"]
[WhiteElo "2571"]
[BlackElo "2454"]
[Annotator "TA"]
[PlyCount "59"]
[EventDate "2022.09.07"]
[EventType "team-tourn"]
[EventCountry "CHN"]
[SourceTitle "playchess.com"]
[Source "ChessBase"]
[SourceQuality "1"]
[TimeControl "1500+10"]

{[%evp 11,59,2,19,2,37,29,44,41,34,43,37,37,61,65,62,64,76,72,72,84,80,80,75,83,83,80,77,77,161,154,191,180,190,174,343,338,327,322,376,377,376,374,420,420,412,408,491,412,994,896]} 1. Nf3 {[%emt 0:00:03]} d5 {[%emt 0:00:04]} 2. d4 {[%emt 0:00:02]} Nf6 {[%emt 0:00:07]} 3. c4 {[%emt 0:00:01]} e6 {[%emt 0:00:01]} 4. g3 {[%emt 0:00:02]} Bb4+ {[%emt 0:00:03]} 5. Nbd2 {[%emt 0:00:01]} O-O {[%emt 0:00:42]} 6. Bg2 {[%emt 0:00:03]} c5 {[%emt 0:00:58]} 7. cxd5 {[%emt 0:00:45] E01: Catalan: Early deviations.} Nxd5 {[%emt 0:00:37]} 8. a3 {[%emt 0:01:01]} Bxd2+ {[%emt 0:00:02]} 9. Qxd2 {[%emt 0:00:02] White is slightly better.} cxd4 {[%emt 0:00:08]} 10. O-O {[%emt 0:00:53]} Nc6 {[%emt 0:00:23]} 11. Nxd4 {[%emt 0:00:11] [#]} Nxd4 $146 {[%emt 0:01:35]} ({Predecessor:} 11... Bd7 12. b4 Nxd4 13. Qxd4 Bc6 14. Bb2 f6 15. Rfd1 Qe8 16. Rac1 a6 17. e4 Ne7 {1-0 (31) Maris,I (2363)-Wolters,V (1774) Groningen 2016}) 12. Qxd4 {[%emt 0:00:02]} Bd7 {[%emt 0:00:03]} 13. b3 {[%emt 0:00:35]} ({Reject} 13. Bxd5 Bb5 $11) 13... Qf6 {[%emt 0:01:06]} 14. Qxf6 {[%emt 0:01:12]} Nxf6 {[%emt 0:00:21]} 15. Bxb7 {[%emt 0:00:09] [#] aiming for Bf4.} Rab8 {[%emt 0:00:02]} 16. Ba6 {[%emt 0:00:02]} Rxb3 {[%emt 0:00:13]} 17. Be3 {[%emt 0:00:03] A strong pair of Bishops.} Bb5 {[%emt 0:04:09]} 18. Bxb5 {[%emt 0:00:12]} Rxb5 {[%emt 0:00:02]} 19. Bxa7 {[%emt 0:00:25]} Ne4 {[%emt 0:01:49]} (19... Ra5 $16 20. Bb6 Ra4) 20. a4 $18 {[%emt 0:00:57][%cal Ba3a4,Ba4a5,Ba5a6,Ba6a7][%mdl 32]} Rb7 {[%emt 0:01:10]} 21. Be3 {[%emt 0:00:36] Threatens to win with Rfc1.} Ra8 {[%emt 0:00:50]} 22. Rfc1 {[%emt 0:00:18] Inhibits Nc3. And now a5 would win.} Rb3 $2 {[%emt 0:02:27] [#]} (22... h5 23. a5 Ra6) 23. a5 {[%emt 0:00:13]} Nc3 {[%emt 0:00:33]} 24. Kf1 {[%emt 0:00:15]} f6 {[%emt 0:00:32]} 25. a6 {[%emt 0:00:25]} Kf7 {[%emt 0:00:56]} 26. a7 {[%emt 0:01:20]} Ke7 {[%emt 0:00:41]} 27. Bd2 {[%emt 0:03:25]} Nb5 {[%emt 0:02:50]} 28. Rab1 {[%emt 0:00:44]} ({Don't do} 28. Be3 Kd7 29. Rd1+ Kc8 $18) 28... Nd4 {[%emt 0:03:40]} 29. Be3 {[%emt 0:00:03]} e5 {[%emt 0:02:06]} (29... Rxb1 $142 30. Rxb1 Nc6 31. Bc5+ Kf7 32. Rb7+ Kg8) 30. Bxd4 {[%emt 0:00:14] Black did not feel at home in the position after the opening.  Weighted Error Value: White=0.05 (flawless) /Black=0.29 (precise)} 1-0

[Event "Chinese League Div-A Rapid 2022"]
[Site "Fuling,Chongqing"]
[Date "2022.09.14"]
[Round "7.24"]
[White "Zhang, Lanlin"]
[Black "Ren, Xiaoyi"]
[Result "1/2-1/2"]
[ECO "C77"]
[WhiteElo "2135"]
[BlackElo "2250"]
[Annotator "NA RC"]
[PlyCount "64"]
[EventDate "2022.09.07"]
[EventType "team-tourn"]
[EventCountry "CHN"]
[SourceTitle "playchess.com"]
[Source "ChessBase"]
[SourceQuality "1"]
[TimeControl "1500+10"]

1. e4 {[%emt 0:00:02]} e5 {[%emt 0:00:03]} 2. Nf3 {[%emt 0:00:06]} Nc6 {[%emt 0:00:07]} 3. Bb5 {[%emt 0:00:01]} a6 {[%emt 0:00:03]} 4. Ba4 {[%emt 0:00:01]} Nf6 {[%emt 0:00:18]} 5. d3 {[%emt 0:00:05]} b5 {[%emt 0:00:54]} 6. Bb3 {[%emt 0:00:02]} h6 {[%emt 0:00:02]} 7. Nc3 {[%emt 0:00:41]} Be7 {[%emt 0:00:22]} 8. a4 {[%emt 0:00:10]} b4 {[%emt 0:00:29]} 9. Nd5 {[%emt 0:00:32]} O-O {[%emt 0:00:24]} 10. c3 {[%emt 0:01:58]} Rb8 {[%emt 0:00:47]} 11. Bc2 {[%emt 0:03:46]} d6 {[%emt 0:01:32]} 12. O-O {[%emt 0:01:10]} Bg4 {[%emt 0:00:51]} 13. Ne3 {[%emt 0:01:43]} Bh5 {[%emt 0:00:24]} 14. Nf5 {[%emt 0:00:22]} Re8 {[%emt 0:00:01]} 15. Ng3 {[%emt 0:00:15]} Bg4 {[%emt 0:00:16]} 16. h3 {[%emt 0:00:10]} Bd7 {[%emt 0:00:07]} 17. d4 {[%emt 0:00:13]} Bf8 {[%emt 0:00:04]} 18. Bd2 {[%emt 0:00:57]} bxc3 {[%emt 0:00:40]} 19. Bxc3 {[%emt 0:01:11]} exd4 {[%emt 0:01:21]} 20. Nxd4 {[%emt 0:00:02]} Nxd4 {[%emt 0:03:59]} 21. Qxd4 {[%emt 0:00:09]} Bc6 {[%emt 0:04:58]} 22. Rad1 {[%emt 0:03:09]} d5 {[%emt 0:05:27]} 23. e5 {[%emt 0:01:35]} Nd7 {[%emt 0:00:27]} 24. Rfe1 {[%emt 0:02:13]} Bc5 {[%emt 0:00:55]} 25. Qd3 {[%emt 0:01:37]} Nf8 {[%emt 0:00:01]} 26. Qxa6 {[%emt 0:00:20]} Rb6 {[%emt 0:00:01]} 27. Qe2 {[%emt 0:02:04]} Qg5 {[%emt 0:02:10]} 28. Bd4 {[%emt 0:00:29]} Bxd4 {[%emt 0:00:18]} 29. Rxd4 {[%emt 0:00:01]} f6 {[%emt 0:01:33]} 30. Qd3 {[%emt 0:01:02]} fxe5 {[%emt 0:00:39]} 31. Rg4 {[%emt 0:00:04]} e4 {[%emt 0:00:04]} 32. Qd1 {[%emt 0:01:22]} Qe5 {[%emt 0:00:06]} 1/2-1/2

[Event "Chinese League Div-A Rapid 2022"]
[Site "Fuling,Chongqing"]
[Date "2022.09.14"]
[Round "7.25"]
[White "Zhang, Xiaowen"]
[Black "Chu, Ruotong"]
[Result "1-0"]
[ECO "C42"]
[WhiteElo "2307"]
[BlackElo "2185"]
[Annotator "RC"]
[PlyCount "93"]
[EventDate "2022.09.07"]
[EventType "team-tourn"]
[EventCountry "CHN"]
[SourceTitle "playchess.com"]
[Source "ChessBase"]
[SourceQuality "1"]
[TimeControl "1500+10"]

1. e4 {[%emt 0:00:03]} e5 {[%emt 0:00:05]} 2. Nf3 {[%emt 0:00:03]} Nf6 {[%emt 0:00:01]} 3. Nxe5 {[%emt 0:00:02]} d6 {[%emt 0:00:01]} 4. Nf3 {[%emt 0:00:02]} Nxe4 {[%emt 0:00:02]} 5. Bd3 {[%emt 0:00:27]} Nf6 {[%emt 0:01:25]} 6. O-O {[%emt 0:00:04]} Be7 {[%emt 0:00:12]} 7. h3 {[%emt 0:01:03]} O-O {[%emt 0:02:42]} 8. c3 {[%emt 0:00:03]} b6 {[%emt 0:00:57]} 9. Bc2 {[%emt 0:00:50]} Bb7 {[%emt 0:00:04]} 10. Re1 {[%emt 0:00:12]} Re8 {[%emt 0:02:09]} 11. d4 {[%emt 0:00:18]} Nbd7 {[%emt 0:00:11]} 12. Nbd2 {[%emt 0:01:11]} Bf8 {[%emt 0:01:18]} 13. Rxe8 {[%emt 0:00:58]} Qxe8 {[%emt 0:00:02]} 14. Nf1 {[%emt 0:00:06]} Ne4 {[%emt 0:02:07]} 15. Qd3 {[%emt 0:03:46]} Ndf6 {[%emt 0:00:17]} 16. N3h2 {[%emt 0:01:40]} Nd7 {[%emt 0:02:55]} 17. f3 {[%emt 0:04:16]} Nef6 {[%emt 0:00:08]} 18. Bg5 {[%emt 0:00:33]} g6 {[%emt 0:00:37]} 19. Qd2 {[%emt 0:02:20]} Bg7 {[%emt 0:00:37]} 20. Ba4 {[%emt 0:01:11]} Qf8 {[%emt 0:03:24]} 21. Re1 {[%emt 0:00:04]} Re8 {[%emt 0:00:31]} 22. Bxf6 {[%emt 0:03:31]} Rxe1 {[%emt 0:00:02]} 23. Bxg7 {[%emt 0:00:01]} Qe7 {[%emt 0:00:01]} 24. Bxd7 {[%emt 0:00:05]} Kxg7 {[%emt 0:00:39]} 25. Bb5 {[%emt 0:00:49]} h5 {[%emt 0:00:03]} 26. Bc4 {[%emt 0:01:25]} d5 {[%emt 0:00:19]} 27. Bd3 {[%emt 0:00:07]} c5 {[%emt 0:00:11]} 28. f4 {[%emt 0:00:19]} c4 {[%emt 0:00:37]} 29. Nf3 {[%emt 0:00:27]} Ra1 {[%emt 0:00:54]} 30. Bc2 {[%emt 0:01:12]} Rxa2 {[%emt 0:00:02]} 31. Qc1 {[%emt 0:00:47]} f5 {[%emt 0:01:29]} 32. Ne5 {[%emt 0:00:05]} b5 {[%emt 0:00:29]} 33. Ne3 {[%emt 0:00:43]} b4 {[%emt 0:01:49]} 34. Bxf5 {[%emt 0:00:12]} bxc3 {[%emt 0:00:01]} 35. Qxc3 {[%emt 0:00:04]} Qf6 {[%emt 0:00:06]} 36. Nxg6 {[%emt 0:00:48]} Qb6 {[%emt 0:00:25]} 37. Nd1 {[%emt 0:00:05]} Ra1 {[%emt 0:00:51]} 38. Bc2 {[%emt 0:00:02]} Rxd1+ {[%emt 0:02:32]} 39. Bxd1 {[%emt 0:00:01]} Qxg6 {[%emt 0:00:02]} 40. Qe3 {[%emt 0:00:02]} Qb1 {[%emt 0:01:13]} 41. Qe5+ {[%emt 0:00:01]} Kg6 {[%emt 0:00:16]} 42. Qxh5+ {[%emt 0:00:02]} Kf6 {[%emt 0:00:01]} 43. Kh2 {[%emt 0:00:37]} Qxb2 {[%emt 0:00:02]} 44. Qe5+ {[%emt 0:00:07]} Kf7 {[%emt 0:00:21]} 45. Bh5+ {[%emt 0:00:04]} Kf8 {[%emt 0:00:02]} 46. Qf6+ {[%emt 0:00:05]} Kg8 {[%emt 0:00:02]} 47. Bf7+ {[%emt 0:00:01]} 1-0

[Event "Chinese League Div-A Rapid 2022"]
[Site "Fuling,Chongqing"]
[Date "2022.09.14"]
[Round "7.26"]
[White "Huang, Renjie"]
[Black "Xiao, Tong"]
[Result "1-0"]
[ECO "C07"]
[WhiteElo "2446"]
[BlackElo "2027"]
[Annotator "RC"]
[PlyCount "85"]
[EventDate "2022.09.07"]
[EventType "team-tourn"]
[EventCountry "CHN"]
[SourceTitle "playchess.com"]
[Source "ChessBase"]
[SourceQuality "1"]
[TimeControl "1500+10"]

1. e4 {[%emt 0:00:01]} e6 {[%emt 0:00:02]} 2. d4 {[%emt 0:00:05]} d5 {[%emt 0:00:02]} 3. Nd2 {[%emt 0:00:12]} c5 {[%emt 0:00:04]} 4. exd5 {[%emt 0:00:04]} Qxd5 {[%emt 0:00:07]} 5. Ngf3 {[%emt 0:00:06]} cxd4 {[%emt 0:00:05]} 6. Bc4 {[%emt 0:00:02]} Qd6 {[%emt 0:00:06]} 7. Ne4 {[%emt 0:00:01]} Qb4+ {[%emt 0:00:22]} 8. Nfd2 {[%emt 0:00:02]} Nc6 {[%emt 0:01:47]} 9. O-O {[%emt 0:00:05]} Bd7 {[%emt 0:00:25]} 10. c3 {[%emt 0:00:05]} Qb6 {[%emt 0:00:19]} 11. Bb3 {[%emt 0:01:25]} Na5 {[%emt 0:03:58]} 12. Ba4 {[%emt 0:00:23]} Bxa4 {[%emt 0:00:51]} 13. Qxa4+ {[%emt 0:00:07]} Nc6 {[%emt 0:00:02]} 14. Nc4 {[%emt 0:00:38]} Qa6 {[%emt 0:00:11]} 15. Qb3 {[%emt 0:00:26]} Nf6 {[%emt 0:00:11]} 16. Ned6+ {[%emt 0:00:53]} Bxd6 {[%emt 0:00:02]} 17. Nxd6+ {[%emt 0:00:01]} Ke7 {[%emt 0:00:38]} 18. Nb5 {[%emt 0:00:02]} Rad8 {[%emt 0:00:32]} 19. a4 {[%emt 0:00:36]} Qb6 {[%emt 0:03:36]} 20. Qa3+ {[%emt 0:01:18]} Kd7 {[%emt 0:00:10]} 21. cxd4 {[%emt 0:03:31]} Nd5 {[%emt 0:00:46]} 22. Bg5 {[%emt 0:00:54]} Nce7 {[%emt 0:00:33]} 23. Bxe7 {[%emt 0:02:11]} Nxe7 {[%emt 0:00:02]} 24. Rac1 {[%emt 0:00:08]} Rc8 {[%emt 0:02:22]} 25. Rc5 {[%emt 0:00:04]} Nd5 {[%emt 0:00:55]} 26. Qf3 {[%emt 0:04:59]} Ne7 {[%emt 0:03:46]} 27. Rfc1 {[%emt 0:01:18]} Rc6 {[%emt 0:00:00]} 28. Qxf7 {[%emt 0:00:33]} a6 {[%emt 0:00:00]} 29. Rxc6 {[%emt 0:00:50]} bxc6 {[%emt 0:00:06]} 30. d5 {[%emt 0:00:07]} exd5 {[%emt 0:01:05]} 31. Re1 {[%emt 0:00:11]} axb5 {[%emt 0:02:40]} 32. Rxe7+ {[%emt 0:00:13]} Kc8 {[%emt 0:01:44]} 33. Qe6+ {[%emt 0:00:02]} Kb8 {[%emt 0:00:03]} 34. axb5 {[%emt 0:00:02]} Rc8 {[%emt 0:00:55]} 35. Qd6+ {[%emt 0:00:44]} Ka8 {[%emt 0:00:05]} 36. Qd7 {[%emt 0:00:13]} Kb8 {[%emt 0:02:01]} 37. bxc6 {[%emt 0:00:25]} Qa6 {[%emt 0:00:18]} 38. h3 {[%emt 0:00:51]} Rxc6 {[%emt 0:00:23]} 39. Re8+ {[%emt 0:00:01]} Rc8 {[%emt 0:00:02]} 40. Rxc8+ {[%emt 0:00:02]} Qxc8 {[%emt 0:00:01]} 41. Qxc8+ {[%emt 0:00:01]} Kxc8 {[%emt 0:00:02]} 42. f4 {[%emt 0:00:01]} Kd7 {[%emt 0:00:08]} 43. Kf2 {[%emt 0:00:01]} 1-0

[Event "Chinese League Div-A Rapid 2022"]
[Site "Fuling,Chongqing"]
[Date "2022.09.14"]
[Round "7.27"]
[White "Liu, Qingnan"]
[Black "Zou, Chen"]
[Result "1-0"]
[ECO "E62"]
[WhiteElo "2542"]
[BlackElo "2432"]
[Annotator "RC"]
[PlyCount "63"]
[EventDate "2022.09.07"]
[EventType "team-tourn"]
[EventCountry "CHN"]
[SourceTitle "playchess.com"]
[Source "ChessBase"]
[SourceQuality "1"]
[TimeControl "1500+10"]

1. Nf3 {[%emt 0:00:02]} Nf6 {[%emt 0:00:02]} 2. d4 {[%emt 0:00:01]} g6 {[%emt 0:00:05]} 3. c4 {[%emt 0:00:07]} Bg7 {[%emt 0:00:07]} 4. g3 {[%emt 0:00:01]} O-O {[%emt 0:00:04]} 5. Bg2 {[%emt 0:00:01]} d6 {[%emt 0:00:02]} 6. O-O {[%emt 0:00:03]} Nc6 {[%emt 0:00:14]} 7. Nc3 {[%emt 0:00:10]} Bg4 {[%emt 0:02:10]} 8. h3 {[%emt 0:02:31]} Bxf3 {[%emt 0:00:16]} 9. Bxf3 {[%emt 0:00:19]} Nd7 {[%emt 0:00:04]} 10. e3 {[%emt 0:02:06]} e5 {[%emt 0:00:10]} 11. d5 {[%emt 0:02:07]} Ne7 {[%emt 0:00:24]} 12. e4 {[%emt 0:00:10]} h5 {[%emt 0:01:50]} 13. Be3 {[%emt 0:01:31]} Kh7 {[%emt 0:01:00]} 14. Qd2 {[%emt 0:00:46]} Ng8 {[%emt 0:01:07]} 15. b4 {[%emt 0:00:33]} a5 {[%emt 0:00:11]} 16. a3 {[%emt 0:00:18]} Bh6 {[%emt 0:00:16]} 17. Kg2 {[%emt 0:00:32]} Bxe3 {[%emt 0:02:19]} 18. Qxe3 {[%emt 0:00:16]} b6 {[%emt 0:03:41]} 19. Be2 {[%emt 0:00:01]} Ne7 {[%emt 0:03:35]} 20. f4 {[%emt 0:00:43]} f5 {[%emt 0:00:12]} 21. Bd3 {[%emt 0:01:08]} Kg7 {[%emt 0:03:28]} 22. fxe5 {[%emt 0:03:23]} Nxe5 {[%emt 0:00:18]} 23. Ne2 {[%emt 0:00:16]} axb4 {[%emt 0:02:35]} 24. Nd4 {[%emt 0:00:11]} Rf6 {[%emt 0:00:44]} 25. exf5 {[%emt 0:02:39]} Nxd3 {[%emt 0:00:16]} 26. fxg6 {[%emt 0:03:30]} Nxg6 {[%emt 0:02:26]} 27. Qxd3 {[%emt 0:00:08]} Nf8 {[%emt 0:00:21]} 28. Nc6 {[%emt 0:01:17]} Qe8 {[%emt 0:00:16]} 29. Rae1 {[%emt 0:01:03]} Qg6 {[%emt 0:01:04]} 30. Re7+ {[%emt 0:00:44]} Kh8 {[%emt 0:00:13]} 31. Qd4 {[%emt 0:00:33]} Qc2+ {[%emt 0:00:22]} 32. Kg1 {[%emt 0:00:01]} 1-0

[Event "Chinese League Div-A Rapid 2022"]
[Site "Fuling,Chongqing"]
[Date "2022.09.14"]
[Round "7.28"]
[White "Zhao, Jun"]
[Black "Zhou, Weiqi"]
[Result "1/2-1/2"]
[ECO "C47"]
[WhiteElo "2619"]
[BlackElo "2597"]
[Annotator "TA"]
[PlyCount "55"]
[EventDate "2022.09.07"]
[EventType "team-tourn"]
[EventCountry "CHN"]
[SourceTitle "playchess.com"]
[Source "ChessBase"]
[SourceQuality "1"]
[TimeControl "1500+10"]

{[%evp 27,55,20,25,6,21,21,29,28,33,29,25,35,45,32,29,26,35,36,27,22,30,0,40,0,42,0,40,0,36,0]} 1. e4 {[%emt 0:00:02]} e5 {[%emt 0:00:02]} 2. Nf3 {[%emt 0:00:03]} Nf6 {[%emt 0:00:02]} 3. Nc3 {[%emt 0:00:27]} Nc6 {[%emt 0:00:04]} 4. d4 {[%emt 0:00:03]} exd4 {[%emt 0:00:03]} 5. Nxd4 {[%emt 0:00:02]} Bb4 {[%emt 0:00:07]} 6. Nxc6 {[%emt 0:00:03]} bxc6 {[%emt 0:00:04]} 7. Bd3 {[%emt 0:00:03]} d5 {[%emt 0:00:33]} 8. exd5 {[%emt 0:00:06]} O-O {[%emt 0:00:17]} 9. O-O {[%emt 0:00:03]} cxd5 {[%emt 0:00:06]} 10. Bg5 {[%emt 0:00:08]} c6 {[%emt 0:00:23]} 11. Qf3 {[%emt 0:00:04]} h6 {[%emt 0:00:25]} 12. Bxf6 {[%emt 0:00:07]} Qxf6 {[%emt 0:00:03]} 13. Qxf6 {[%emt 0:00:02]} gxf6 {[%emt 0:00:03]} 14. Ne2 {[%emt 0:00:15]} Rb8 {[%emt 0:01:01] is cutting edge theory.} 15. Nd4 {[%emt 0:00:23] C47: Scotch Four Knights and Four Knights with 4 g3.} Rb6 {[%emt 0:00:45]} (15... Bc5 {seems wilder.} 16. Nxc6 Rxb2 17. Rfb1 Rb6) 16. Nf5 {[%emt 0:00:16]} Bxf5 {[%emt 0:00:44]} 17. Bxf5 {[%emt 0:00:02] White has an edge.} Re8 {[%emt 0:00:11] [#]} 18. Rab1 $146 {[%emt 0:00:11]} ({Predecessor:} 18. Rad1 Re5 19. Bd3 Rb8 20. g3 Ba5 21. b3 Rbe8 22. Ba6 Bc3 23. Rd3 d4 24. Rf3 {½-½ (46) Moranda,W (2618)-Wojtaszek,R (2694) Bydgoszcz 2021}) 18... Re5 {[%emt 0:00:29]} 19. Bd3 {[%emt 0:00:05]} Rb8 {[%emt 0:00:15]} 20. g3 {[%emt 0:00:03]} Bd6 {[%emt 0:00:13]} 21. Kg2 {[%emt 0:00:05]} Kg7 {[%emt 0:00:07]} 22. Rfd1 {[%emt 0:00:23]} a5 {[%emt 0:00:11]} 23. Kf1 {[%emt 0:00:11]} Bc5 {[%emt 0:00:18]} 24. Kg2 {[%emt 0:00:05]} Bd6 {[%emt 0:00:05]} 25. Kf1 {[%emt 0:00:02]} Bc5 {[%emt 0:00:04]} 26. Kg2 {[%emt 0:00:02]} Bd6 {[%emt 0:00:13]} 27. Kf1 {[%emt 0:00:05]} Bc5 {[%emt 0:00:02]} 28. Kg2 {[%emt 0:00:01] Weighted Error Value: White=0.15 (very precise) /Black=0.03 (flawless)} 1/2-1/2